Cogmind - Beta 13 *** ADVENTURER MODE // 2024.04.08 @ 22:17:35 Player: Rugzbee Result: Destroyed by S-10 Pest with Light Assault Rifle Performance ------------- Evolutions (1) 500 Regions Visited (2) 400 Robots Destroyed (20) 100 Value Destroyed (457) 457 Prototype IDs (4) 80 Alien Tech Used (0) 0 Bonus (16) 16 TOTAL SCORE: 1553 Bonus ------- High Alert Combat Kills 16 Cogmind --------- Core Integrity 0/400 Matter 11/300 Energy 53/280 System Corruption 0% Temperature Cool (0) Movement Core (200) Ox3 Location -9/Materials Parts ------- > --- POWER (1) -------- Cooled Ion Engine > --- PROPULSION (2) --- (None) > --- UTILITY (3) ------ Cooling System Disposable Heat Sink > --- WEAPON (3) ------- (None) > --- INVENTORY (5) ---- (None) Peak State ------------ > --- POWER ------------ Cooled Ion Engine > --- PROPULSION ------- Hover Unit Hover Unit > --- UTILITY ---------- Weight Redist. System Signal Interpreter ECM Suite > --- WEAPON ----------- Light Assault Rifle Autogun Grenade Launcher > --- INVENTORY -------- Cooled Ion Engine Cooling System Disposable Heat Sink Hardened Light Armor Plating Datajack [Rating: 14] Favorites ----------- Power Light Ion Engine Engine Light Ion Engine Propulsion Wheel Wheel Wheel Hover Unit Hover Unit Utility ECM Suite Device ECM Suite Processor Signal Interpreter Protection Hardened Light Armor Plating Weapon Grenade Launcher Energy Gun Medium Laser Ballistic Gun Light Assault Rifle Launcher Grenade Launcher Special Melee Weapon Datajack Build | -11 -10 -9 ------- Run | Yrd Mat Mat Slots Evolved 2 | . . 2 Power . | . . . Propulsion . | . . . Utility 1 | . . 1 Weapon 1 | . . 1 Parts Attached 29 | 8 14 7 Power 8 | 3 4 1 Engine 8 | 3 4 1 Core . | . . . Reactor . | . . . Propulsion 4 | 2 2 . Treads . | . . . Leg . | . . . Wheel 2 | 2 . . Hover 2 | . 2 . Flight . | . . . Utility 10 | 1 5 4 Device 6 | 1 2 3 Storage . | . . . Processor 2 | . 2 . Hackware . | . . . Protection 2 | . 1 1 Artifact . | . . . Weapon 7 | 2 3 2 Energy Gun 1 | 1 . . Energy Cannon . | . . . Ballistic Gun 3 | 1 1 1 Ballistic Cannon . | . . . Launcher 2 | . 2 . Special Weapon . | . . . Impact Weapon . | . . . Slashing Weapon . | . . . Piercing Weapon . | . . . Special Melee Weapon 1 | . . 1 Unidentified Prototypes . | . . . Parts Lost 11 | . 1 10 Power 1 | . . 1 Propulsion 2 | . . 2 Utility 3 | . . 3 Weapon 5 | . 1 4 Highest Loss Streak 10 | . 1 10 To Critical Strikes 2 | . . 2 Average Slot Usage (%) 86 | . 96 68 Engine 12 | . 14 8 Wheel 12 | . 18 . Hover 10 | . 9 12 Device 17 | . 14 23 Processor 7 | . 11 1 Protection 1 | . . 3 Ballistic Gun 5 | . 2 11 Launcher 16 | . 23 4 Naked Turns . | . . . Heaviest Build 22 | 7 16 22 Greatest Support 26 | 20 26 18 Greatest Overweight (x) 1 | . 1 1 Average Overweight (x) . | . . . Largest Inventory Capacity 5 | 5 5 5 Average Capacity 5 | 5 5 5 Most Carried 5 | 5 5 5 Average Carried 3 | 1 4 3 Final Capacity 5 | 5 5 5 Final Carried 5 | 3 5 . Class Distribution -------------------- 86% | Mutant 13% | Bomber Dominant Class ---------------- Mutant | -10/Materials Mutant | -9/Materials Resources | -11 -10 -9 ----------- Run | Yrd Mat Mat Matter Collected 371 | 251 120 . Remotely . | . . . Salvage Created 377 | 33 325 19 Parts 38 | 4 31 3 Haulers Intercepted 1 | . 1 . Recyclers Shooed . | . . . Parts Field Recycled . | . . . Retrieved Matter . | . . . Parts Self-Destructed . | . . . Prevented . | . . . Kills | -11 -10 -9 ------- Run | Yrd Mat Mat Combat Hostiles Destroyed 13 | 1 12 . Guns 1 | 1 . . AOE 12 | . 12 . Classes Destroyed 6 | 1 5 . Worker 3 | . 2 1 Tunneler 1 | . 1 . Hauler 1 | . 1 . Watcher 2 | . 2 . Swarmer 3 | . 3 . Grunt 10 | 1 9 . Best Kill Streak 8 | 1 8 1 Combat Bots Only 6 | 1 6 . Max Kills in Single Turn 5 | 1 5 1 Gunslinging . | . . . Exploded 3 | . 3 . Melee . | . . . Uniques/NPCs Destroyed . | . . . Combat | -11 -10 -9 -------- Run | Yrd Mat Mat Hostile Shots Fired 239 | 1 16 222 Missed 60 | 1 3 56 Damage Taken 1208 | . 143 1065 Core 435 | . 29 406 Absorbed by Shields . | . . . Ignored by Resistances 389 | . 44 345 Core Remaining (%) 94 | 100 88 . Volleys Fired 17 | 1 13 3 Largest 2 | 2 2 2 Hottest 70 | 70 60 43 Shots Fired 31 | 2 23 6 Gun 10 | 2 2 6 Cannon . | . . . Launcher 21 | . 21 . Special . | . . . Kinetic 9 | 1 2 6 Thermal 1 | 1 . . Explosive 21 | . 21 . Electromagnetic . | . . . Robot Hit Streak 4 | 2 3 4 Robot Miss Streak 4 | . 1 4 Penetration Max . | . . . Secondary Targets . | . . . Shots Hit Robots 13 | 2 5 6 Core Hits 30 | 2 27 1 Critical Kills . | . . . Critical Parts Destroyed . | . . . Critical Strikes . | . . . Melee Attacks 7 | . . 7 Impact . | . . . Slashing . | . . . Piercing . | . . . Sneak Attacks . | . . . Combat Hostiles . | . . . Follow-up Attacks . | . . . Damage Inflicted 997 | 21 938 38 Guns 63 | 21 7 35 Cannons . | . . . Explosions 931 | . 931 . Melee . | . . . Ramming 3 | . . 3 Kinetic 51 | 9 7 35 Thermal 12 | 12 . . Explosive 931 | . 931 . Electromagnetic . | . . . Impact . | . . . Slashing . | . . . Piercing . | . . . Highest Corruption . | . . . Average Corruption . | . . . Corruption Purged . | . . . Corruption Blocked . | . . . Overload Shots . | . . . Overflow Damage 17 | . 17 . Projectiles . | . . . Explosions 17 | . 17 . Melee . | . . . Knockbacks 1 | . . 1 Impact 1 | . . 1 Kinetic . | . . . Secondary . | . . . Self-Inflicted Damage 42 | . 41 1 Shots 2 | . 2 . Rammed 1 | . . 1 Targets Rammed 1 | . . 1 Kicked . | . . . Crushed . | . . . Highest Temperature 60 | 30 60 6 Average Temperature 26 | 18 31 3 Received Heat Transfer 93 | . 57 36 Siege Activations . | . . . Robots Corrupted . | . . . Combat Hostiles . | . . . Parts Fried . | . . . Impact Corruptions . | . . . Robots Melted . | . . . Combat Hostiles . | . . . Parts Melted . | . . . Heat Transferred 37 | 37 . . Parts Sabotaged . | . . . Parts Stolen . | . . . Parts Stripped . | . . . Power Chain Reactions . | . . . Alert | -11 -10 -9 ------- Run | Yrd Mat Mat Peak Influence 467 | 20 467 183 Initial 168 | . 11 168 Average 129 | 10 163 147 Maximum Alert Level 2 | . 2 . Low Security (%) 79 | 100 60 100 Level 1 15 | . 28 . Level 2 5 | . 10 . Level 3 . | . . . Level 4 . | . . . Level 5 . | . . . High Security . | . . . Max Security . | . . . Squads Dispatched 3 | . 2 1 Investigation 3 | . 2 1 Extermination . | . . . Reinforcement . | . . . Assault . | . . . Garrison . | . . . Intercept . | . . . Searches Triggered . | . . . Construction Impeded . | . . . Haulers Reinforced . | . . . Active Scanning Responses . | . . . Cargo Convoy Interrupts . | . . . Stealth | -11 -10 -9 --------- Run | Yrd Mat Mat Distress Signals 2 | . 1 1 Communications Jammed . | . . . Distress Signals . | . . . Times Spotted 42 | 1 12 29 Peak Tracking Total 18 | 1 4 18 Tactical Retreats 5 | . 1 4 Traps | -11 -10 -9 ------- Run | Yrd Mat Mat Traps Triggered 1 | . . 1 Indirectly . | . . . Trap Hack Attempts . | . . . Triggered . | . . . Disarmed 6 | . 6 . Reprogrammed . | . . . Reused . | . . . Traps Extracted . | . . . Installed . | . . . Triggered . | . . . Machines | -11 -10 -9 ---------- Run | Yrd Mat Mat Machines Disabled 3 | . 3 . Max in Single Turn 1 | . 1 . Machines Repaired . | . . . Machines Dismantled . | . . . Machines Sabotaged . | . . . Overloaded Fab Kills . | . . . Hacking | -11 -10 -9 --------- Run | Yrd Mat Mat Machines Accessed 6 | . 6 . Terminals 6 | . 6 . Fabricators . | . . . Repair Stations . | . . . Recycling Units . | . . . Scanalyzers . | . . . Garrison Access . | . . . Total Hacks 25 | . 25 . Successful 17 | . 17 . Failed 8 | . 8 . Catastrophic 3 | . 3 . Database Lockouts . | . . . Manual . | . . . Terminals 25 | . 25 . Fabricators . | . . . Repair Stations . | . . . Recycling Units . | . . . Scanalyzers . | . . . Garrison Access . | . . . Terminal Hacks 17 | . 17 . Record 3 | . 3 . Prototype ID Bank 3 | . 3 . Emergency Access Points 2 | . 2 . Locate Traps 1 | . 1 . Disarm Traps 1 | . 1 . Dispatch Records 2 | . 2 . Security Status 1 | . 1 . Zone Layout 4 | . 4 . Fabricator Hacks . | . . . Repair Station Hacks . | . . . Recycling Unit Hacks . | . . . Scanalyzer . | . . . Garrison Access Hacks . | . . . Unauthorized Hacks . | . . . Terminals . | . . . Fabricators . | . . . Repair Stations . | . . . Recycling Units . | . . . Scanalyzers . | . . . Garrison Access . | . . . Data Cores Recovered . | . . . Used . | . . . Hacking Detections 5 | . 5 . Full Trace Events 4 | . 4 . Feedback Events . | . . . Feedback Blocked . | . . . Robot Schematics Acquired . | . . . Robots Built . | . . . Authchips . | . . . Time . | . . . Total Robot Build Rating . | . . . Part Schematics Acquired . | . . . Parts Built . | . . . Authchips . | . . . Time . | . . . Total Part Build Rating . | . . . Parts Repaired . | . . . Time . | . . . Parts Recycled . | . . . Recycled Matter . | . . . Retrieved Matter . | . . . Retrieved Components . | . . . Parts Scanalyzed . | . . . Part Schematics Acquired . | . . . Parts Damaged . | . . . Bothacking | -11 -10 -9 ------------ Run | Yrd Mat Mat Used RIF Installer . | . . . Robots Hacked 1 | . . 1 Non-combat . | . . . Combat 1 | . . 1 Robot Hacks Applied 2 | . . 2 parse_system 2 | . . 2 Relay Couplers Released . | . . . Fabnet Peak Effective % . | . . . Robots Rewired . | . . . Allies Hacked . | . . . Hacks Repelled . | . . . Allies | -11 -10 -9 -------- Run | Yrd Mat Mat Total Allies . | . . . Largest Group . | . . . Highest-Rated Group . | . . . Highest-Rated Ally . | . . . Total Orders . | . . . Ally Attacks . | . . . Total Damage . | . . . Kills . | . . . Allies Corrupted . | . . . Allies Melted . | . . . Intel | -11 -10 -9 ------- Run | Yrd Mat Mat Robot Analysis Total . | . . . Derelict Logs Recovered . | . . . Drone Launches . | . . . Drone Recoveries . | . . . Exploration | -11 -10 -9 ------------- Run | Yrd Mat Mat Turns Passed 590 | 114 311 165 Spaces Moved 437 | 73 267 97 Core 28 | 20 . 8 Treads . | . . . Legs . | . . . Wheels 262 | 53 209 . Hover 147 | . 58 89 Flight . | . . . Fastest Speed 50 | 50 56 56 Average Speed 83 | 71 83 90 Slowest Speed 120 | 80 120 120 Overloaded Moves . | . . . Propulsion Burnouts . | . . . Robots Hopped . | . . . Cave-ins Triggered . | . . . Exploration Rate (%) 24 | 9 51 13 Regions Visited 2 Branch Regions . Pre-discovered Areas . | . . . Known Exits Taken 1 | . 1 . Unknown Exits Taken 1 | 1 . . Scrap Searched . | . . . Spaces Dug . | . . . Terrain Destroyed 92 | . 92 . Melee . | . . . Projectile . | . . . AOE 92 | . 92 . Terrain Rammed . | . . . Walls Destroyed . | . . . Machines Disabled . | . . . Actions | -11 -10 -9 --------- Run | Yrd Mat Mat Total 637 | 132 339 166 Wait 106 | 41 16 49 Move 435 | 72 266 97 Hop . | . . . Pick Up 26 | 9 15 2 Fast Attach . | . . . Attach 26 | 7 13 6 Detach 6 | 1 5 . Swap 3 | 1 1 1 Drop 10 | . 10 . Fire 17 | 1 13 3 Melee 7 | . . 7 Ram 1 | . . 1 Kick . | . . . Crush . | . . . Escape Stasis . | . . . Rewire . | . . . Trap . | . . . Miscellaneous . | . . . Route ------- -11/Scrapyard -10/Materials -9/Materials History --------- Turn | Location | Event 2 | -11/Scrapyard | Met Revision 17 51 | -11/Scrapyard | Discovered new exit (range 8) 115 | -11/Scrapyard | Entered Materials 313 | -10/Materials | Build established: Mutant 377 | -10/Materials | Discovered new exit (range 7) 425 | -10/Materials | Identified exit to Materials 426 | -10/Materials | Entered another Materials area 426 | -9/Materials | Evolved 2 slots: Utility x1, Weapon x1 553 | -9/Materials | Core integrity fell below 50% 575 | -9/Materials | Core integrity fell below 20% 591 | -9/Materials | Destroyed by S-10 Pest with Light Assault Rifle Last Messages --------------- K-01 Serf collects debris. Jacked S-10 Pest... >>parse_system Reading system data... K-01 Serf cleans the Material Compactor. K-01 Serf collects debris. Jacked S-10 Pest... Command string: stop No effect. Hover Unit destroyed. K-01 Serf cleans the Material Compactor. Critical hit (Destroy). Datajack destroyed. Cld. Ion Engine destroyed. C-30 ARC bursts open, deploying its payload. S-10 Pest unfolds itself. S-10 Pest destroyed. ECM Suite destroyed. Weight Redist. System destroyed. S-10 Pest destroyed. Map ----- +----------------------------------------------------+ | #???????# ?????????????????????????????????????? | | #???????# ?????????????????????????????????????? | | ????????/ ?????????????????????????????????????? | | ????????# ?????????????????????????????????????? | | ????????# ?????????????????????????????????????? | | ????????# #????????????????????????????????????? | | ????????# #????????????????????????????????????? | | ????????# ################ ?????????????????? | | ????????# "%"?????????????????????? | | ????????# =% #???????????????????????????? | | ????????+ ! * #???????????????????????????? | | ????????# =% #???????????????????????????? | | ????????###= #???????????????????????????? | | ??????????# ##???????????????????????????? | | ########### #########????????????????????? | | # #????????????????????? | | # #????????????????????? | | T # #????????????????????? | | ### """ """ # #????????????????????? | | ??# """ """ # rs #????????????????????? | | ??# """ """ # """Yr#????????????????????? | | ??# """ """ + """""Y#????????????????????? | | ??# # """"" #????????????????????? | | ??# [ #g"""""s#????????????????????? | | ??# %= # """ss#????????????????????? | | ??# #####+##### # sss@* #????????????????????? | | ??# #?????????# #########????????????????????? | | ??# #?????????# ????????????????????????????? | | ??+ #?????????# ????????????????????????????? | | ??# #?????????# ????????????????????????????? | | ??# #?????????#####????????????????????????????? | | ??? ???????????????????????????????????????????? | | ?????????????????????????????????????????????????? | | ?????????????????????????????????????????????????? | | ?????????????????????????????????????????????????? | | ?????????????????????????????????????????????????? | | ?????????????????????????????????????????????????? | | ?????????????????????????????????????????????????? | | ?????????????????????????????????????????????????? | | ?????????????????????????????????????????????????? | | ?????????????????????????????????????????????????? | | ?????????????????????????????????????????????????? | | ?????????????????????????????????????????????????? | | ?????????????????????????????????????????????????? | | ?????????????????????????????????????????????????? | | ?????????????????????????????????????????????????? | | ?????????????????????????????????????????????????? | | ?????????????????????????????????????????????????? | | ?????????????????????????????????????????????????? | | ?????????????????????????????????????????????????? | +----------------------------------------------------+ Best States ------------- Heat Dissipation 35 Coolant Potential 50 Energy Generation 14 Energy Capacity 280 Matter Stores 300 Matter Capacity 300 Sight Range 16 Terrain Scan Density 10 ECM Strength 1 Additional Mass Support 6 Armor Coverage 150 Resistance: KI 20 Resistance: TH 20 Resistance: EX 20 Resistance: EM 20 Resistance: I 20 Resistance: S 20 Resistance: P 20 Evasion (%) 53 Offensive Hacking 10 Item Schematics ----------------- None Robot Schematics ------------------ None Fabricated ------------ Nothing Alien Tech Used ----------------- None Achievements -------------- Loot Pinata One Hack Too Far Challenges ------------ None Game ------ Seed DrainedPrecisionRail Manual? 0 Play Time 00:20:50 Cumulative 1.6 hours Start 2024.04.07 @ 02:19:30 End 2024.04.08 @ 22:17:35 Sessions 3 Manual Loads 0 Difficulty Adventurer Special Mode None Game No. 2 Rogue 0 Adventurer 2 Explorer 0 Win Type - Total 0 Types 0/0/0/0/0/0/0/0/0 Lore% 0 Gallery% 3 Achievement% 4 Wizard Run 0 Options --------- Layout 2 ASCII 0 Keyboard 0 Movement Mouse Keybinds 0 Fullscreen 1 Font 32/SmallcapsGlow Map View 50x44 Zoom Use 0% Tactical HUD 0 Map Filters NONE Filters NONE Steam 1 RUN: 1f7664c7-bea3-4bd6-b22f-a3a0f2e4cd34